bitfinex/quotes_BTCUSD_20241205
["timestamp","ask_amount","ask_price","bid_price","bid_amount"]
[1733369096749,0.53898452,102910.0,102900.0,0.14629226]
[1733369097219,0.64761342,102910.0,102900.0,0.09909226]
[1733369097692,0.53898452,102910.0,102900.0,0.09909226]
[1733369097933,0.63898452,102910.0,102900.0,0.09909226]
[1733369098338,0.53898452,102910.0,102900.0,0.09909226]
[1733369098756,0.63898452,102910.0,102900.0,0.09909226]
[1733369098994,0.54761342,102910.0,102900.0,0.09909226]
[1733369099214,0.53398452,102910.0,102900.0,0.09909226]
[1733369100324,0.54919978,102910.0,102900.0,0.09909226]
[1733369100739,0.54919978,102910.0,102880.0,0.05888727]
[1733369100962,0.64876716,102910.0,102880.0,0.25328627]
[1733369101171,0.64876716,102910.0,102890.0,0.143685]
[1733369101172,0.00017585,102910.0,102890.0,0.143685]
[1733369101392,0.00017585,102910.0,102890.0,0.240868]
[1733369101662,0.09967605,102900.0,102890.0,0.143691]
[1733369101875,0.19322186,102900.0,102890.0,0.143691]
[1733369102511,0.38758486,102900.0,102890.0,0.097191]
[1733369102926,0.38758486,102900.0,102890.0,0.05922577]
[1733369103140,0.38758486,102900.0,102890.0,7.7e-07]
[1733369103342,0.488823,102880.0,102860.0,0.0738367]
[1733369103561,0.6175647,102870.0,102860.0,0.0738367]
[1733369103804,0.51792565,102850.0,102840.0,0.07650719]
[1733369104003,0.71279383,102850.0,102840.0,0.07650719]
[1733369104218,0.71279383,102850.0,102820.0,0.07917768]
[1733369104219,0.73799795,102850.0,102820.0,0.07917768]
[1733369104500,0.6176397,102830.0,102820.0,0.01781529]
[1733369104688,0.194533,102810.0,102800.0,0.08420117]
[1733369104917,0.71286983,102810.0,102800.0,0.08478928]
[1733369105135,0.73973027,102810.0,102800.0,0.08478928]
[1733369105412,0.51803965,102790.0,102780.0,0.08638903]
[1733369105655,0.194609,102770.0,102760.0,0.08718915]
[1733369105869,0.21962799,102760.0,102750.0,0.14612879]
[1733369106075,0.41035661,102760.0,102750.0,0.14630529]
[1733369106280,0.38535662,102760.0,102750.0,0.14630529]
[1733369106940,0.38535662,102760.0,102750.0,0.2213053]
[1733369107150,0.38535662,102760.0,102750.0,0.14630529]
[1733369107151,0.19072862,102760.0,102750.0,0.14630529]
[1733369107366,0.41035661,102760.0,102750.0,0.14630529]
[1733369107584,0.70882527,102760.0,102750.0,0.08791029]
[1733369107823,0.70882527,102760.0,102750.0,0.04898029]
[1733369108236,0.194647,102750.0,102740.0,0.00010728]
[1733369108444,0.5403406,102750.0,102740.0,0.00022189]
[1733369108666,0.56534059,102750.0,102740.0,0.00022189]
[1733369108875,0.5403406,102750.0,102740.0,0.00022189]
[1733369109330,0.194795,102680.0,102640.0,0.097419]
[1733369109527,0.1,102640.0,102610.0,0.15825306]
[1733369109730,0.09967605,102620.0,102610.0,0.15825306]
[1733369110167,0.1892815,102620.0,102610.0,0.15825306]
[1733369110865,0.1,102610.0,102590.0,0.11122355]
[1733369111082,0.19967605,102600.0,102590.0,0.11122355]
[1733369111305,0.1892815,102600.0,102590.0,0.11805198]
[1733369112202,0.1892815,102600.0,102590.0,0.10681304]
[1733369112413,0.1892815,102600.0,102590.0,0.12724274]
[1733369112694,0.08960545,102600.0,102590.0,0.30175804]
[1733369112922,0.08956041,102600.0,102590.0,0.30175804]
[1733369113169,0.05977078,102600.0,102590.0,0.30175804]
[1733369113408,0.05977078,102600.0,102590.0,0.32888304]
[1733369113653,0.05977078,102620.0,102590.0,0.32888304]
[1733369113875,0.09967605,102600.0,102590.0,0.32888304]
[1733369114084,0.09967605,102600.0,102590.0,0.20428304]
[1733369114289,0.45437783,102600.0,102590.0,0.20428304]
[1733369114559,0.194969,102580.0,102570.0,0.12931454]
[1733369114754,0.35441583,102580.0,102570.0,0.12949127]
[1733369114973,0.39080603,102580.0,102570.0,0.12949127]
[1733369115199,0.49464505,102580.0,102570.0,0.12949127]
[1733369115401,0.52920353,102580.0,102570.0,0.12949127]
[1733369115655,0.29464505,102580.0,102570.0,0.12949127]
[1733369115865,0.29464505,102580.0,102570.0,0.22698127]
[1733369116082,0.09967605,102580.0,102570.0,0.22698127]
[1733369116287,0.09967605,102580.0,102570.0,0.22198127]
[1733369116769,0.09967605,102580.0,102570.0,0.3514236]
[1733369117035,0.195007,102560.0,102550.0,0.11656453]
[1733369117228,0.29468305,102560.0,102550.0,0.11656453]
[1733369117435,0.32629208,102560.0,102550.0,0.11656453]
[1733369117649,0.12596813,102560.0,102550.0,0.11656453]
[1733369117861,0.29468305,102560.0,102550.0,0.11656453]
[1733369118096,0.32542568,102560.0,102550.0,0.11656453]
[1733369118311,0.33051067,102560.0,102550.0,0.11656453]
[1733369118512,0.33051067,102560.0,102550.0,0.21407453]
[1733369118751,0.29976804,102560.0,102550.0,0.21407453]
[1733369118993,0.33051067,102560.0,102550.0,0.21407453]
[1733369119183,0.13041868,102560.0,102550.0,0.21407453]
[1733369119461,0.09967605,102560.0,102550.0,0.20407453]
[1733369119861,0.39468305,102560.0,102550.0,0.20407453]
[1733369120069,0.29468305,102560.0,102550.0,0.20407453]
[1733369120300,0.09967605,102560.0,102550.0,0.20407453]
[1733369120825,0.00017535,102580.0,102570.0,0.097494]
[1733369121035,0.194913,102610.0,102570.0,0.097494]
[1733369121269,0.09967605,102580.0,102570.0,0.12066935]
[1733369121710,0.29464505,102580.0,102570.0,0.12066935]
[1733369122370,0.09967605,102580.0,102570.0,0.12066935]
[1733369123059,0.00508218,102590.0,102580.0,0.120484]
[1733369123293,0.00508218,102590.0,102580.0,0.170085]
[1733369123918,0.10475823,102590.0,102580.0,0.170085]
[1733369124370,0.40045614,102620.0,102590.0,0.0807]
[1733369124598,0.29967047,102610.0,102590.0,0.17360648]
[1733369125038,1.694931,102600.0,102590.0,0.17360648]
[1733369125270,1.89460705,102600.0,102590.0,0.097475]
[1733369125478,2.04460705,102600.0,102590.0,0.09696201]
[1733369125680,1.94460705,102600.0,102590.0,0.09696201]
[1733369125930,2.14460705,102600.0,102590.0,0.09196201]
[1733369126134,0.64460705,102600.0,102590.0,0.09196201]
[1733369126616,0.44460705,102600.0,102590.0,0.09196201]
[1733369127019,0.44460705,102600.0,102580.0,0.023]
[1733369127229,0.194969,102580.0,102570.0,0.00017535]
[1733369127430,0.295026,102550.0,102540.0,0.002623]
[1733369127636,0.39470205,102550.0,102540.0,0.100143]
[1733369127890,0.39470205,102550.0,102480.0,0.1]
[1733369128109,0.09967605,102540.0,102510.0,0.195094]
[1733369128309,0.71861473,102580.0,102530.0,0.097524]
[1733369128310,0.195003,102570.0,102530.0,0.097524]
[1733369128548,0.195003,102570.0,102540.0,0.097522]
[1733369128549,0.09967605,102570.0,102540.0,0.097522]
[1733369128750,0.09967605,102570.0,102560.0,0.1]
[1733369128916,0.194941,102600.0,102580.0,0.1]
[1733369129127,0.51834265,102630.0,102600.0,0.1]
[1733369129128,0.194874,102630.0,102600.0,0.1]
[1733369129348,0.10026698,102630.0,102620.0,0.1]
[1733369129586,0.10026698,102630.0,102620.0,0.197447]
[1733369129724,0.29514098,102630.0,102620.0,0.097447]
[1733369129937,0.39514098,102630.0,102620.0,0.097447]
[1733369130113,0.29514098,102630.0,102620.0,0.097447]
[1733369130319,0.10026698,102630.0,102620.0,0.097447]
[1733369130546,0.194836,102660.0,102640.0,0.1]
[1733369130772,0.09967605,102650.0,102640.0,0.197428]
[1733369130981,0.29451205,102650.0,102640.0,0.197428]
[1733369131213,0.39451205,102650.0,102640.0,0.097428]
[1733369131429,0.6179807,102650.0,102640.0,0.097428]
[1733369131893,0.6179807,102650.0,102640.0,0.07269827]
[1733369132405,0.6179807,102650.0,102640.0,0.06864275]
[1733369132406,0.39451205,102650.0,102640.0,0.06864275]
[1733369132619,0.29451205,102650.0,102640.0,0.06864275]
[1733369133272,0.39451205,102650.0,102640.0,0.06864275]
[1733369133486,0.39451205,102650.0,102640.0,0.06829275]
[1733369133726,0.389777,102630.0,102610.0,0.148]
[1733369133933,0.09967605,102620.0,102610.0,0.148]
[1733369134155,0.09967605,102620.0,102610.0,0.24545]
[1733369134363,0.09967605,102620.0,102610.0,0.19545]
[1733369134828,0.09967605,102620.0,102610.0,0.292906]
[1733369135043,0.11872011,102640.0,102620.0,0.098]
[1733369135247,0.09967605,102630.0,102620.0,0.19603793]
[1733369135975,0.194842,102650.0,102630.0,0.098]
[1733369136242,0.09967605,102640.0,102630.0,0.098]
[1733369136459,0.01063785,102660.0,102650.0,0.098]
[1733369136681,0.09874175,102660.0,102650.0,0.195418]
[1733369137847,0.39355875,102660.0,102630.0,0.223]
[1733369138072,0.194842,102650.0,102630.0,0.223]
[1733369138331,0.194842,102650.0,102640.0,0.098]
[1733369138332,0.09967605,102650.0,102640.0,0.098]
[1733369138541,0.09967605,102650.0,102640.0,0.195428]
[1733369139223,0.29451205,102650.0,102640.0,0.097428]
[1733369139438,0.29451205,102650.0,102620.0,0.00059093]
[1733369139439,0.29451205,102650.0,102620.0,0.09859093]
[1733369139701,0.09967605,102640.0,102630.0,0.098]
[1733369139927,0.09967605,102640.0,102630.0,0.19543]
[1733369140616,0.09967605,102640.0,102620.0,0.09859093]
[1733369140617,0.194874,102630.0,102620.0,0.09859093]
[1733369140848,0.29455005,102630.0,102620.0,0.00059093]
[1733369141075,0.6180187,102630.0,102620.0,0.04770992]
[1733369141294,0.344969,102580.0,102560.0,0.098]
[1733369141507,0.09967605,102570.0,102560.0,0.098]
[1733369141717,0.29466405,102570.0,102560.0,0.09749]
[1733369141936,0.29466405,102570.0,102520.0,0.098]
[1733369141937,0.195064,102530.0,102520.0,0.098]
[1733369142156,0.09967605,102530.0,102520.0,0.09754]
[1733369142372,0.29474005,102530.0,102520.0,0.09754]
[1733369142576,0.29474005,102530.0,102520.0,0.19571706]
[1733369142790,0.29474005,102530.0,102520.0,0.09771706]
[1733369143229,0.39474005,102530.0,102520.0,0.09771706]
[1733369143703,0.41728297,102530.0,102520.0,0.09771706]
[1733369144142,0.31728297,102530.0,102520.0,0.09771706]
[1733369144352,0.31728297,102530.0,102450.0,0.17787577]
[1733369144353,0.1,102510.0,102450.0,0.17787577]
[1733369144562,0.09967605,102500.0,102490.0,0.098]
[1733369144794,0.08967605,102500.0,102490.0,0.098]
[1733369145009,0.28479705,102500.0,102490.0,0.09757]
[1733369145230,0.3094733,102500.0,102490.0,0.09757]
[1733369145466,0.1143523,102500.0,102490.0,0.09757]
[1733369145688,0.1143523,102500.0,102490.0,0.09815865]
[1733369145897,0.31113997,102500.0,102490.0,0.09815865]
[1733369146122,0.08967605,102500.0,102490.0,0.09815865]
[1733369146596,0.66567799,102530.0,102500.0,0.098]
[1733369146597,0.400159,102530.0,102500.0,0.098]
[1733369146826,0.29477305,102520.0,102500.0,0.195561]
[1733369147924,0.48987105,102520.0,102500.0,0.087561]
[1733369148131,0.195102,102510.0,102500.0,0.087561]
[1733369148336,0.29477805,102510.0,102500.0,0.087561]
[1733369148552,0.09967605,102510.0,102500.0,0.087561]
[1733369148779,0.29477805,102510.0,102500.0,0.087561]
[1733369149192,0.7182467,102510.0,102500.0,0.087561]
[1733369149403,0.6182467,102510.0,102500.0,0.085601]
[1733369149614,0.6182467,102510.0,102500.0,0.082661]
[1733369149819,0.6572467,102510.0,102500.0,0.082661]
[1733369150512,0.197121,102500.0,102490.0,0.00058865]
[1733369150722,0.32111397,102500.0,102490.0,0.00058865]
[1733369150938,0.22399297,102500.0,102490.0,0.00058865]
[1733369151196,0.22399297,102500.0,102450.0,0.00087477]
[1733369151197,0.1,102490.0,102450.0,0.00087477]
[1733369151467,0.195198,102460.0,102450.0,0.00087477]
[1733369151673,0.09967605,102460.0,102450.0,0.10087477]
[1733369151886,0.19967605,102460.0,102450.0,0.00087477]
[1733369152095,0.32291094,102460.0,102450.0,7.7e-07]
[1733369152334,0.34591094,102460.0,102450.0,7.7e-07]
[1733369152539,0.31846316,102460.0,102450.0,7.7e-07]
[1733369152768,0.12326516,102460.0,102450.0,7.7e-07]
[1733369152977,0.12326516,102460.0,102450.0,0.10000077]
[1733369153200,0.31846316,102460.0,102450.0,7.7e-07]
[1733369154077,0.31846316,102460.0,102450.0,0.10000077]
[1733369154078,0.27326516,102460.0,102450.0,0.10000077]
[1733369154723,0.17358911,102460.0,102450.0,0.10000077]
[1733369154979,0.14172113,102460.0,102450.0,0.19760877]
[1733369155211,0.023,102500.0,102480.0,0.1]
[1733369155422,0.09967605,102490.0,102480.0,0.1]
[1733369155638,0.09967605,102490.0,102480.0,0.18]
[1733369155856,0.29482605,102490.0,102480.0,0.1]
[1733369156062,0.09967605,102490.0,102470.0,0.1]
[1733369156281,0.06976501,102500.0,102490.0,0.1]
[1733369156515,0.06976501,102500.0,102490.0,0.52704605]
[1733369156729,0.01,102530.0,102520.0,0.1]
[1733369157420,0.10967605,102530.0,102520.0,0.10017733]
[1733369158720,0.01,102530.0,102520.0,0.10017733]
[1733369158928,0.10967605,102530.0,102520.0,0.10017733]
[1733369159372,0.01,102530.0,102520.0,0.10017733]
[1733369159583,0.01,102530.0,102520.0,0.19771833]
[1733369159804,0.01,102530.0,102520.0,0.10017733]
[1733369160447,0.10967605,102530.0,102520.0,0.10017733]
[1733369160657,0.02,102530.0,102520.0,0.19771833]
[1733369160886,0.02,102530.0,102520.0,0.354111]
[1733369161091,0.01075109,102570.0,102530.0,0.197532]
[1733369161092,0.20574009,102570.0,102530.0,0.197532]
[1733369161309,0.09967605,102560.0,102540.0,0.1]
[1733369161531,0.195026,102550.0,102540.0,0.1]
[1733369161744,0.09967605,102550.0,102540.0,0.1]
[1733369162398,0.29470205,102550.0,102540.0,0.1]
[1733369163073,0.383949,102580.0,102560.0,0.1]
[1733369163281,0.09967605,102570.0,102560.0,0.1]
[1733369163919,0.29466405,102570.0,102550.0,0.1]
[1733369164186,0.295045,102540.0,102510.0,0.0769]
[1733369164410,0.09967605,102520.0,102510.0,0.1]
[1733369164642,0.29476605,102520.0,102480.0,0.143077]
[1733369164858,0.29476605,102520.0,102480.0,0.06563035]
[1733369165057,0.195077,102530.0,102490.0,0.097564]
[1733369165261,0.09967605,102530.0,102500.0,0.097552]
[1733369165485,0.09967605,102530.0,102500.0,0.195111]
[1733369165706,0.09967605,102530.0,102500.0,0.00017733]
[1733369165927,0.195001,102570.0,102520.0,0.197532]
[1733369166157,0.09967605,102560.0,102530.0,0.0478]
[1733369166394,0.09967605,102560.0,102500.0,0.24308433]
[1733369166592,0.195039,102550.0,102510.0,0.097551]
[1733369166890,0.195084,102520.0,102500.0,0.04797733]
[1733369167106,0.195077,102530.0,102500.0,0.00017733]
[1733369167327,0.09967605,102520.0,102500.0,0.00017733]
[1733369167549,0.195102,102510.0,102500.0,0.00017733]
[1733369167774,0.55024405,102520.0,102500.0,0.00017733]
[1733369168001,0.35514605,102520.0,102500.0,0.00017733]
[1733369168226,0.55024205,102520.0,102500.0,0.00017733]
[1733369168445,0.16004905,102520.0,102500.0,0.00017733]
[1733369168671,0.060373,102520.0,102510.0,0.097551]
[1733369168882,0.060373,102520.0,102500.0,0.29740738]
[1733369169095,0.060373,102520.0,102510.0,0.19722705]
[1733369169331,0.060373,102520.0,102510.0,0.41992705]
[1733369170228,1.5,102540.0,102520.0,0.097534]
[1733369170448,1.5,102540.0,102520.0,0.29474405]
[1733369170712,0.344971,102580.0,102540.0,0.1]
[1733369170940,0.15,102580.0,102550.0,0.09967605]
[1733369171172,1.5,102560.0,102540.0,0.01996761]
[1733369171396,1.5,102560.0,102530.0,0.292574]
[1733369171629,0.09967605,102560.0,102510.0,0.2227]
[1733369171852,0.195028,102550.0,102510.0,0.41764838]
[1733369172070,0.01080393,102570.0,102520.0,0.29721105]
[1733369172290,0.539967,102580.0,102530.0,0.097526]
[1733369172502,1.5,102560.0,102540.0,0.09967605]
[1733369172726,1.5,102560.0,102540.0,0.19719705]
[1733369173174,1.5,102560.0,102540.0,0.29471905]
[1733369173397,1.5,102560.0,102540.0,0.29719205]
[1733369173628,1.5,102560.0,102550.0,0.197513]
[1733369173865,0.15,102580.0,102560.0,0.194999]
[1733369174119,0.15,102580.0,102560.0,0.19717305]
[1733369174338,0.44465705,102580.0,102530.0,0.097532]
[1733369174595,0.195,102570.0,102540.0,0.09967605]
[1733369174818,0.00058984,102570.0,102540.0,0.09967605]
[1733369175044,0.00058984,102570.0,102550.0,0.197505]
[1733369175265,0.195019,102560.0,102520.0,0.27824384]
[1733369175496,0.09967605,102550.0,102520.0,0.0488]
[1733369175726,0.205019,102560.0,102520.0,0.34355705]
[1733369175727,0.400038,102560.0,102520.0,0.34355705]
[1733369175954,0.30469505,102560.0,102520.0,0.24601105]
[1733369176170,0.49971505,102560.0,102520.0,0.24601105]
[1733369176390,0.49971505,102560.0,102520.0,0.38790266]
[1733369176608,0.30469505,102560.0,102520.0,0.48543866]
[1733369176834,0.09967605,102550.0,102500.0,0.1]
[1733369177108,0.195118,102510.0,102480.0,0.0496]
[1733369177329,0.1047405,102540.0,102490.0,0.19724505]
[1733369177554,0.195065,102530.0,102490.0,0.39480905]
[1733369177772,0.195085,102520.0,102480.0,0.147173]
[1733369177995,0.19507,102530.0,102490.0,0.29724605]
[1733369178209,0.19507,102530.0,102490.0,0.49238005]
[1733369178442,0.19507,102530.0,102490.0,0.49255738]
[1733369178647,0.390147,102530.0,102490.0,0.29498738]
[1733369178872,0.39518145,102540.0,102500.0,0.09756]
[1733369179118,0.4948575,102540.0,102500.0,0.39235705]
[1733369179342,0.29474405,102530.0,102500.0,0.097561]
[1733369179574,0.00506445,102540.0,102500.0,0.32042122]
[1733369179785,0.195039,102550.0,102510.0,0.19722005]
[1733369180004,1.5,102530.0,102510.0,0.39231605]
[1733369180221,0.48975605,102550.0,102510.0,0.29477105]
[1733369180430,0.30811988,102550.0,102510.0,0.44411127]
[1733369180637,0.09967605,102540.0,102510.0,0.0982233]
[1733369180868,0.195083,102520.0,102510.0,0.0982233]
[1733369181086,0.29475905,102520.0,102510.0,0.0982233]
[1733369181309,0.490226,102510.0,102490.0,0.00017733]
[1733369181522,0.39479705,102500.0,102490.0,0.00017733]
[1733369182456,0.49479705,102500.0,102490.0,0.00017733]
[1733369182669,0.195198,102460.0,102450.0,0.01552383]
[1733369182881,0.29487405,102460.0,102450.0,0.01525217]
[1733369183731,0.8183427,102460.0,102450.0,0.01525217]
[1733369183972,0.2950507,102460.0,102450.0,0.01525217]
[1733369184516,0.2950507,102460.0,102450.0,0.0101921]
[1733369184939,0.3950507,102460.0,102450.0,0.0101921]
[1733369185086,0.2950507,102460.0,102450.0,0.0101921]
[1733369185290,0.3950507,102460.0,102450.0,0.0101921]
[1733369185486,0.3950507,102460.0,102440.0,0.22390916]
[1733369185487,0.345217,102450.0,102440.0,0.22390916]
[1733369185705,0.1,102420.0,102410.0,0.00118814]
[1733369185928,0.295293,102410.0,102400.0,5e-05]
[1733369186146,0.39496905,102410.0,102400.0,5e-05]
[1733369186777,0.39496905,102410.0,102390.0,0.00120204]
[1733369186778,0.295312,102400.0,102390.0,0.00093038]
[1733369187010,0.7184567,102400.0,102390.0,0.00093038]
[1733369187416,0.39494131,102400.0,102390.0,0.00093038]
[1733369187615,0.29498805,102400.0,102390.0,0.00093038]
[1733369187820,0.09967605,102400.0,102390.0,0.00093038]
[1733369188280,0.00017652,102410.0,102390.0,0.00093038]
[1733369188450,0.09985257,102410.0,102390.0,0.00093038]
[1733369188653,0.09985257,102410.0,102390.0,0.00082941]
[1733369189059,0.09967605,102400.0,102390.0,0.00082941]
[1733369189375,0.00017652,102410.0,102390.0,0.00082941]
[1733369189589,0.00017652,102410.0,102390.0,0.19816746]
[1733369189941,0.00017652,102410.0,102390.0,0.24083464]
[1733369190007,0.0138181,102440.0,102410.0,0.19764]
[1733369190209,0.0138181,102440.0,102400.0,0.19733205]
[1733369190210,0.11349415,102440.0,102400.0,0.097656]
[1733369190409,0.0138181,102440.0,102400.0,0.29498105]
[1733369190714,0.0138181,102440.0,102410.0,0.19732205]
[1733369190916,1.62399527,102450.0,102410.0,0.19732205]
[1733369191116,1.72367132,102450.0,102410.0,0.29496105]
[1733369191368,1.51017717,102450.0,102410.0,0.19967605]
[1733369191781,1.51017717,102450.0,102420.0,0.097628]
[1733369192005,1.51017717,102450.0,102420.0,0.32467145]
[1733369192214,1.51017717,102450.0,102420.0,0.09967605]
[1733369192389,0.01017717,102450.0,102420.0,0.09967605]
[1733369192631,0.01017717,102450.0,102420.0,0.19731205]
[1733369192842,1.5,102440.0,102420.0,0.29494205]
[1733369193041,1.5,102440.0,102410.0,0.195284]
[1733369193270,1.5,102440.0,102410.0,0.29496005]
[1733369193482,0.10985322,102450.0,102420.0,0.097636]
[1733369193666,0.01017717,102450.0,102430.0,0.097627]
[1733369193917,0.01017717,102450.0,102430.0,0.17497605]
[1733369194136,1.5,102440.0,102430.0,0.17497605]
[1733369194362,1.5,102440.0,102430.0,0.27319216]
[1733369194569,1.5,102440.0,102430.0,0.07588911]
[1733369194905,1.5,102440.0,102430.0,0.17351611]
[1733369195329,1.5,102440.0,102430.0,0.07588911]
[1733369195798,1.5,102440.0,102430.0,0.17351611]
[1733369196011,0.195199,102460.0,102430.0,0.07588911]
[1733369196238,0.01343187,102470.0,102430.0,0.29729705]
[1733369196357,0.195106,102510.0,102460.0,0.097591]
[1733369196551,0.195106,102510.0,102460.0,0.1173501]
[1733369196552,0.00059082,102470.0,102460.0,0.1173501]
[1733369196761,1.60026687,102470.0,102440.0,0.097609]
[1733369196977,1.60026687,102470.0,102440.0,0.195219]
[1733369197439,1.50059082,102470.0,102440.0,0.19729005]
[1733369197637,1.50059082,102470.0,102450.0,0.097607]
[1733369197848,0.10026687,102470.0,102450.0,0.097607]
[1733369198259,1.5,102460.0,102450.0,0.097607]
[1733369198506,1.5,102460.0,102450.0,0.19728305]
[1733369198705,1.5,102460.0,102450.0,0.29728305]
[1733369199362,1.5,102460.0,102450.0,0.42188305]
[1733369199771,0.00059082,102470.0,102460.0,0.097599]
[1733369200201,1.50059082,102470.0,102460.0,0.19727505]
[1733369201919,1.51586673,102470.0,102450.0,0.319808]
[1733369202065,0.01586673,102470.0,102450.0,0.319808]
[1733369202274,0.00059082,102470.0,102450.0,0.319808]
[1733369202499,0.00059082,102470.0,102460.0,0.09967605]
[1733369202853,0.00059082,102470.0,102460.0,0.29727505]
[1733369203060,0.00059082,102470.0,102460.0,0.46898286]
[1733369203302,0.15,102490.0,102480.0,0.19758]
[1733369203509,0.15017714,102490.0,102480.0,0.39725605]
[1733369204137,0.15017714,102490.0,102470.0,0.097582]
[1733369204346,0.15017714,102490.0,102480.0,0.19725605]
[1733369204764,0.15017714,102490.0,102480.0,0.34649806]
[1733369205013,0.15017714,102490.0,102480.0,0.24649806]
[1733369205212,0.15017714,102490.0,102480.0,0.34649806]
[1733369205532,0.15017714,102490.0,102480.0,0.19725605]
[1733369205943,0.15017714,102490.0,102480.0,0.29725605]
[1733369206152,0.195076,102530.0,102480.0,0.29725605]
[1733369206409,0.29491916,102530.0,102500.0,0.195114]
[1733369206642,0.09985316,102530.0,102500.0,0.292668]
[1733369206844,0.09985316,102530.0,102510.0,0.097551]
[1733369206983,0.09985316,102530.0,102500.0,0.2243758]
[1733369207182,1.5,102520.0,102500.0,0.30719685]
[1733369207385,1.5,102520.0,102510.0,0.19722005]
[1733369207609,1.5,102520.0,102510.0,0.29476405]
[1733369207836,1.5,102520.0,102510.0,0.36499254]
[1733369208030,1.5,102520.0,102510.0,0.29476405]
[1733369208292,0.00017711,102530.0,102510.0,0.29476405]
[1733369208538,0.00017711,102530.0,102520.0,0.097541]
[1733369209319,0.00017711,102530.0,102500.0,0.2075208]
[1733369209530,0.29493116,102530.0,102490.0,0.144363]
[1733369209718,0.29493016,102530.0,102490.0,0.24403905]
[1733369209920,0.29492016,102530.0,102490.0,0.34160305]
[1733369210148,0.48999816,102530.0,102490.0,0.34160305]
[1733369210513,0.48999816,102530.0,102500.0,0.09756]
[1733369210713,0.48999816,102530.0,102510.0,0.09755]
[1733369210714,0.00017711,102530.0,102510.0,0.09755]
[1733369210934,0.205019,102560.0,102520.0,0.097541]
[1733369211126,0.10967605,102560.0,102520.0,0.19721705]
[1733369211434,0.29470405,102550.0,102520.0,0.195075]
[1733369211560,0.2569263,102590.0,102530.0,0.1380417]
[1733369211768,0.09967605,102580.0,102540.0,0.1]
[1733369212031,0.4231447,102580.0,102540.0,0.1]
[1733369212220,0.09967605,102580.0,102550.0,0.1]
[1733369212433,0.194988,102570.0,102560.0,0.1]
[1733369212668,0.29466005,102580.0,102560.0,0.1]
[1733369212839,0.48964405,102580.0,102560.0,0.1]
[1733369213048,0.194988,102570.0,102560.0,0.1]
[1733369213276,0.48964405,102580.0,102560.0,0.1]
[1733369213472,0.00017708,102570.0,102560.0,0.09999995]
[1733369214202,0.00017708,102570.0,102560.0,0.11380412]
[1733369214415,0.09985313,102570.0,102550.0,0.13804165]
[1733369214626,0.09985313,102570.0,102550.0,0.09999995]
[1733369214834,0.00017708,102570.0,102550.0,0.09999995]
[1733369215281,0.00017708,102570.0,102560.0,0.09999995]
[1733369216359,0.29484213,102570.0,102540.0,0.0380417]
[1733369216566,0.195044,102550.0,102520.0,0.09999995]
[1733369216782,0.195044,102550.0,102530.0,0.09999995]
[1733369216783,0.29471405,102550.0,102530.0,0.09999995]
[1733369216991,0.00017708,102570.0,102560.0,0.09999995]
[1733369217414,0.00017708,102570.0,102560.0,0.10999995]
[1733369217632,0.00017708,102570.0,102560.0,0.09999995]
[1733369218083,0.09985313,102570.0,102550.0,0.13804165]
[1733369218317,1.5,102560.0,102550.0,0.13804165]
[1733369218518,0.29485413,102570.0,102550.0,0.13804165]
[1733369218519,0.27874087,102600.0,102550.0,0.13804165]
[1733369218744,0.389963,102580.0,102560.0,0.09999995]
[1733369218956,0.48964305,102580.0,102560.0,0.09999995]
[1733369219170,0.48963805,102580.0,102560.0,0.09999995]
[1733369219384,0.29465705,102580.0,102560.0,0.09999995]
[1733369219655,0.48964005,102580.0,102560.0,0.09999995]
[1733369220121,0.195026,102550.0,102530.0,0.09999995]
[1733369220331,0.390065,102550.0,102530.0,0.09999995]
[1733369220557,0.4231447,102540.0,102500.0,0.09999995]
[1733369220761,0.195079,102530.0,102500.0,0.09999995]
[1733369220973,0.48983205,102530.0,102500.0,0.09999995]
[1733369221188,0.32346865,102540.0,102510.0,0.09999995]
[1733369221189,0.390116,102540.0,102510.0,0.09999995]
[1733369221429,0.48979505,102540.0,102510.0,0.09999995]
[1733369221645,0.29473305,102540.0,102510.0,0.09999995]
[1733369221844,0.68485405,102540.0,102510.0,0.11382182]
[1733369222062,0.00994351,102530.0,102510.0,0.11382182]
[1733369222277,0.00994351,102530.0,102510.0,0.09999995]
[1733369222729,0.00994351,102530.0,102520.0,0.09999995]
[1733369222961,0.00994351,102530.0,102520.0,0.56508527]
[1733369223195,0.19502,102560.0,102530.0,0.11610042]
[1733369223423,0.02376821,102550.0,102540.0,0.09999995]
[1733369223629,0.01462659,102550.0,102540.0,0.06952849]
[1733369223827,0.51847065,102570.0,102540.0,0.06952849]
[1733369224072,0.21878361,102560.0,102540.0,0.06952849]
[1733369224241,0.02376361,102550.0,102540.0,0.06952849]
[1733369224444,0.19502,102560.0,102540.0,0.06952849]
[1733369224675,0.01346953,102590.0,102560.0,0.06952849]
[1733369224835,0.20959203,102580.0,102560.0,0.06952849]
[1733369225045,0.20959203,102580.0,102540.0,0.06970557]
[1733369225046,0.54223045,102570.0,102540.0,0.06970557]
[1733369225256,0.0237608,102560.0,102550.0,0.06952849]
[1733369225456,0.194986,102580.0,102550.0,0.06952849]
[1733369225660,0.02373171,102570.0,102560.0,0.18530501]
[1733369225854,0.01362569,102600.0,102580.0,0.06952849]
[1733369226067,0.02373021,102590.0,102580.0,0.06952849]
[1733369226273,0.194935,102600.0,102570.0,0.06952849]
[1733369226535,0.194969,102580.0,102570.0,0.06952849]
[1733369226751,0.194962,102590.0,102570.0,0.06952849]
[1733369226940,0.195004,102570.0,102550.0,0.06952849]
[1733369227158,0.00909914,102560.0,102540.0,0.06952849]
[1733369227358,1.5,102550.0,102540.0,0.06952849]
[1733369227476,1.5,102550.0,102510.0,0.12076449]
[1733369227477,0.195076,102530.0,102510.0,0.14572849]
[1733369227734,0.52222215,102550.0,102510.0,0.14572849]
[1733369227735,0.195051,102540.0,102520.0,0.06952849]
[1733369227988,0.08389953,102560.0,102520.0,0.06952849]
[1733369227989,0.195021,102560.0,102530.0,0.06952849]
[1733369228213,0.15,102540.0,102530.0,0.06952849]
[1733369228419,0.24907745,102540.0,102530.0,0.06952849]
[1733369228645,0.24907745,102540.0,102530.0,0.06970557]
[1733369229052,0.24907745,102540.0,102530.0,0.2040303]
[1733369229274,0.24907745,102540.0,102530.0,0.4599153]
[1733369230261,0.24907745,102540.0,102530.0,0.47316614]
[1733369231056,0.03047151,102620.0,102530.0,0.47316614]
[1733369231262,0.01,102640.0,102630.0,0.06952849]
[1733369231489,0.10469043,102640.0,102630.0,0.06952849]